[Event "7th Iberoamerican-ch 2019"]
[Site "Linares"]
[Date "2019.08.18"]
[Round "9.5"]
[White "Lopez Martinez, Josep Manuel"]
[Black "Escobar Forero, Alder"]
[Result "1/2-1/2"]
[ECO "B31"]
[WhiteElo "2581"]
[BlackElo "2477"]
[Annotator "ChessBase"]
[PlyCount "116"]
[EventDate "2019.08.10"]
[EventType "swiss"]
[EventCountry "ESP"]
[SourceTitle "playchess.com"]
[Source "ChessBase"]
[SourceQuality "1"]
[TimeControl "5400+30"]

1. e4 {[%emt 0:01:42]} c5 {[%emt 0:02:28]} 2. Nf3 {[%emt 0:00:58]} Nc6 {[%emt 0:00:26]} 3. Bb5 {[%emt 0:02:02]} g6 {[%emt 0:00:15]} 4. Bxc6 {[%emt 0:00:44]} dxc6 {[%emt 0:00:21]} 5. d3 {[%emt 0:00:49]} Bg7 {[%emt 0:01:43]} 6. h3 {[%emt 0:00:21]} Nf6 {[%emt 0:01:38]} 7. Nc3 {[%emt 0:00:52]} Nd7 {[%emt 0:00:47]} 8. Be3 {[%emt 0:03:49]} e5 {[%emt 0:00:37]} 9. Qd2 {[%emt 0:11:09]} Qe7 {[%emt 0:04:55]} 10. a3 {[%emt 0:03:28]} b6 {[%emt 0:12:42]} 11. Bh6 {[%emt 0:05:01]} Bxh6 {[%emt 0:19:26]} 12. Qxh6 {[%emt 0:01:28]} f6 {[%emt 0:00:09]} 13. O-O {[%emt 0:12:54]} Nf8 {[%emt 0:04:36]} 14. Nh4 {[%emt 0:04:22]} Be6 {[%emt 0:01:31]} 15. f4 {[%emt 0:00:47]} exf4 {[%emt 0:01:05]} 16. Rxf4 {[%emt 0:00:16]} O-O-O {[%emt 0:00:15]} 17. Raf1 {[%emt 0:03:42]} Nd7 {[%emt 0:00:53]} 18. R4f2 {[%emt 0:00:26]} Rhe8 {[%emt 0:03:38]} 19. Nf3 {[%emt 0:03:36]} Kb7 {[%emt 0:00:39]} 20. Ne2 {[%emt 0:05:53]} Bg8 {[%emt 0:00:58]} 21. Nd2 {[%emt 0:04:09]} Qe5 {[%emt 0:07:15]} 22. c3 {[%emt 0:01:14]} Re7 {[%emt 0:01:26]} 23. Qe3 {[%emt 0:06:40]} Qd6 {[%emt 0:01:56]} 24. Nc1 {[%emt 0:03:27]} Rde8 {[%emt 0:03:57]} 25. Qf4 {[%emt 0:00:49]} Qxf4 {[%emt 0:02:12]} 26. Rxf4 {[%emt 0:00:07]} Re6 {[%emt 0:01:08]} 27. Kf2 {[%emt 0:03:26]} Rd6 {[%emt 0:00:59]} 28. Ke2 {[%emt 0:00:16]} a5 {[%emt 0:02:18]} 29. Kd1 {[%emt 0:00:10]} b5 {[%emt 0:00:23]} 30. Kc2 {[%emt 0:00:12]} Kb6 {[%emt 0:00:18]} 31. g4 {[%emt 0:02:52]} Be6 {[%emt 0:03:04]} 32. R4f2 {[%emt 0:01:34]} a4 {[%emt 0:02:09]} 33. Nf3 {[%emt 0:00:50]} Bb3+ {[%emt 0:00:33]} 34. Nxb3 {[%emt 0:09:22]} axb3+ {[%emt 0:00:05]} 35. Kxb3 {[%emt 0:00:22]} Rxd3 {[%emt 0:00:08]} 36. Re2 {[%emt 0:00:26]} c4+ {[%emt 0:07:44]} 37. Kc2 {[%emt 0:00:21]} Nc5 {[%emt 0:00:49]} 38. e5 {[%emt 0:01:27]} Re6 {[%emt 0:01:58]} 39. Ree1 {[%emt 0:01:09]} Nb3 {[%emt 0:04:22]} 40. Re2 {[%emt 0:02:13]} g5 {[%emt 0:04:26]} 41. Rff2 {[%emt 0:00:56]} h6 {[%emt 0:00:58]} 42. Nd2 {[%emt 0:02:05]} Nxd2 {[%emt 0:00:44]} 43. Rxd2 {[%emt 0:00:09]} Rxd2+ {[%emt 0:00:12]} 44. Kxd2 {[%emt 0:00:03]} fxe5 {[%emt 0:00:14]} 45. Ke3 {[%emt 0:00:01]} e4 {[%emt 0:02:17]} 46. Rd2 {[%emt 0:00:12]} Kc5 {[%emt 0:00:16]} 47. Rd4 {[%emt 0:00:12]} Rf6 {[%emt 0:00:41]} 48. Rxe4 {[%emt 0:00:33]} Rd6 {[%emt 0:00:29]} 49. Re5+ {[%emt 0:00:29]} Kb6 {[%emt 0:00:00]} 50. h4 {[%emt 0:01:42]} gxh4 {[%emt 0:01:21]} 51. Rh5 {[%emt 0:00:30]} h3 {[%emt 0:00:26]} 52. Kf4 {[%emt 0:00:09]} Ka5 {[%emt 0:00:29]} 53. Rxh3 {[%emt 0:00:11]} Ka4 {[%emt 0:00:03]} 54. Ke5 {[%emt 0:00:42]} Rg6 {[%emt 0:00:57]} 55. Kf5 {[%emt 0:00:13]} Rd6 {[%emt 0:00:04]} 56. Ke5 {[%emt 0:00:05]} Rg6 {[%emt 0:01:01]} 57. Kf5 {[%emt 0:00:08]} Rd6 {[%emt 0:00:06]} 58. Ke5 {[%emt 0:00:05]} Rg6 {[%emt 0:00:26]} 1/2-1/2

[Event "7th Iberoamerican-ch 2019"]
[Site "Linares"]
[Date "2019.08.18"]
[Round "9.6"]
[White "Cuenca Jimenez, Jose Fernando"]
[Black "Huerga Leache, Mikel"]
[Result "0-1"]
[ECO "A05"]
[WhiteElo "2515"]
[BlackElo "2440"]
[Annotator "ChessBase"]
[PlyCount "96"]
[EventDate "2019.08.10"]
[EventType "swiss"]
[EventCountry "ESP"]
[SourceTitle "playchess.com"]
[Source "ChessBase"]
[SourceQuality "1"]
[TimeControl "5400+30"]

1. Nf3 {[%emt 0:03:12]} Nf6 {[%emt 0:01:23]} 2. c4 {[%emt 0:00:38]} b6 {[%emt 0:01:32]} 3. g3 {[%emt 0:01:18]} Bb7 {[%emt 0:00:05]} 4. Bg2 {[%emt 0:00:18]} g6 {[%emt 0:00:11]} 5. d4 {[%emt 0:01:15]} Bg7 {[%emt 0:00:25]} 6. d5 {[%emt 0:00:10]} e6 {[%emt 0:05:55]} 7. Nc3 {[%emt 0:01:31]} exd5 {[%emt 0:00:24]} 8. cxd5 {[%emt 0:00:44]} O-O {[%emt 0:00:30]} 9. O-O {[%emt 0:02:19]} Re8 {[%emt 0:01:17]} 10. Nd4 {[%emt 0:00:49]} c5 {[%emt 0:08:30]} 11. dxc6 {[%emt 0:15:13]} dxc6 {[%emt 0:00:50]} 12. Bf4 {[%emt 0:06:38]} Qc8 {[%emt 0:01:11]} 13. Rc1 {[%emt 0:20:08]} Rd8 {[%emt 0:11:46]} 14. Ncb5 {[%emt 0:03:48]} Ne8 {[%emt 0:28:16]} 15. Bg5 {[%emt 0:24:38]} Rd7 {[%emt 0:08:13]} 16. Bh3 {[%emt 0:03:08]} a6 {[%emt 0:05:24]} 17. Bxd7 {[%emt 0:10:22]} Qxd7 {[%emt 0:00:07]} 18. Nc3 {[%emt 0:00:19]} Bxd4 {[%emt 0:02:35]} 19. e3 {[%emt 0:00:09]} Bg7 {[%emt 0:01:04]} 20. Qb3 {[%emt 0:01:52]} b5 {[%emt 0:00:36]} 21. Ne4 {[%emt 0:00:24]} Qd5 {[%emt 0:01:36]} 22. Nc5 {[%emt 0:01:05]} Bc8 {[%emt 0:05:49]} 23. Qxd5 {[%emt 0:00:01]} cxd5 {[%emt 0:00:06]} 24. b3 {[%emt 0:00:10]} Nd7 {[%emt 0:00:29]} 25. Nd3 {[%emt 0:00:57]} Bb7 {[%emt 0:00:40]} 26. Rfd1 {[%emt 0:00:16]} Bf8 {[%emt 0:01:12]} 27. Bf4 {[%emt 0:00:51]} a5 {[%emt 0:00:24]} 28. Ne5 {[%emt 0:01:02]} Nc5 {[%emt 0:00:49]} 29. h4 {[%emt 0:00:42]} f6 {[%emt 0:00:30]} 30. Nd3 {[%emt 0:00:10]} Ne6 {[%emt 0:00:01]} 31. Rc2 {[%emt 0:00:48]} h6 {[%emt 0:00:20]} 32. g4 {[%emt 0:00:10]} d4 {[%emt 0:00:19]} 33. Kf1 {[%emt 0:00:48]} g5 {[%emt 0:01:02]} 34. hxg5 {[%emt 0:00:12]} hxg5 {[%emt 0:00:01]} 35. Bg3 {[%emt 0:00:09]} Bf3 {[%emt 0:00:21]} 36. Rdc1 {[%emt 0:00:01]} Ba3 {[%emt 0:00:09]} 37. Re1 {[%emt 0:00:32]} Kf7 {[%emt 0:02:24]} 38. Kg1 {[%emt 0:01:38]} Rd8 {[%emt 0:01:32]} 39. e4 {[%emt 0:00:32]} Nd6 {[%emt 0:01:10]} 40. e5 {[%emt 0:00:05]} Rh8 {[%emt 0:00:03]} 41. Bh2 {[%emt 0:00:03]} Ne4 {[%emt 0:00:06]} 42. Ra1 {[%emt 0:01:24]} Nc3 {[%emt 0:00:59]} 43. Re1 {[%emt 0:00:16]} Nf4 {[%emt 0:01:10]} 44. Nxf4 {[%emt 0:00:28]} gxf4 {[%emt 0:00:01]} 45. e6+ {[%emt 0:00:21]} Ke7 {[%emt 0:00:12]} 46. Rd2 {[%emt 0:00:01]} Bc5 {[%emt 0:00:30]} 47. Rd3 {[%emt 0:00:26]} Be4 {[%emt 0:01:06]} 48. Rd2 {[%emt 0:01:22]} d3 {[%emt 0:00:09]} 0-1

[Event "7th Iberoamerican-ch 2019"]
[Site "Linares"]
[Date "2019.08.18"]
[Round "9.8"]
[White "Larino Nieto, David"]
[Black "Delgado Ramirez, Neuris"]
[Result "0-1"]
[ECO "A01"]
[WhiteElo "2457"]
[BlackElo "2612"]
[Annotator "ChessBase"]
[PlyCount "74"]
[EventDate "2019.08.10"]
[EventType "swiss"]
[EventCountry "ESP"]
[SourceTitle "playchess.com"]
[Source "ChessBase"]
[SourceQuality "1"]
[TimeControl "5400+30"]

1. b3 {[%emt 0:11:32]} g6 {[%emt 0:00:04]} 2. Bb2 {[%emt 0:00:06]} Nf6 {[%emt 0:00:03]} 3. g3 {[%emt 0:01:30]} Bg7 {[%emt 0:00:09]} 4. Bg2 {[%emt 0:00:02]} O-O {[%emt 0:00:19]} 5. Nf3 {[%emt 0:00:04]} d5 {[%emt 0:01:01]} 6. c4 {[%emt 0:00:12]} c6 {[%emt 0:01:36]} 7. O-O {[%emt 0:00:07]} Re8 {[%emt 0:02:26]} 8. d4 {[%emt 0:01:03]} Be6 {[%emt 0:01:36]} 9. cxd5 {[%emt 0:01:15]} cxd5 {[%emt 0:00:26]} 10. Nc3 {[%emt 0:00:08]} Nc6 {[%emt 0:00:26]} 11. Ne5 {[%emt 0:00:14]} Rc8 {[%emt 0:08:04]} 12. h3 {[%emt 0:00:39]} Ne4 {[%emt 0:06:03]} 13. Nxc6 {[%emt 0:03:08]} bxc6 {[%emt 0:02:56]} 14. Nxe4 {[%emt 0:01:55]} dxe4 {[%emt 0:00:04]} 15. Qc2 {[%emt 0:01:14]} f5 {[%emt 0:13:02]} 16. e3 {[%emt 0:00:07]} Bd5 {[%emt 0:01:36]} 17. Rfc1 {[%emt 0:00:14]} e6 {[%emt 0:00:20]} 18. Ba3 {[%emt 0:00:49]} h5 {[%emt 0:01:18]} 19. h4 {[%emt 0:01:32]} Bf6 {[%emt 0:02:14]} 20. Bc5 {[%emt 0:00:08]} Rc7 {[%emt 0:00:09]} 21. Qe2 {[%emt 0:00:38]} Rh7 {[%emt 0:01:11]} 22. Bh3 {[%emt 0:06:25]} g5 {[%emt 0:01:04]} 23. hxg5 {[%emt 0:00:05]} Bxg5 {[%emt 0:00:03]} 24. Kg2 {[%emt 0:01:02]} a5 {[%emt 0:04:18]} 25. Rh1 {[%emt 0:00:40]} Be7 {[%emt 0:00:58]} 26. Rac1 {[%emt 0:05:13]} Bxc5 {[%emt 0:02:21]} 27. Rxc5 {[%emt 0:00:02]} h4 {[%emt 0:00:07]} 28. Kf1 {[%emt 0:02:29]} Kh8 {[%emt 0:01:34]} 29. Bg2 {[%emt 0:02:02]} Rg8 {[%emt 0:00:48]} 30. Qe1 {[%emt 0:00:13]} hxg3 {[%emt 0:00:35]} 31. Rxh7+ {[%emt 0:00:58]} Kxh7 {[%emt 0:00:02]} 32. fxg3 {[%emt 0:00:47]} a4 {[%emt 0:01:02]} 33. bxa4 {[%emt 0:06:34]} Qb8 {[%emt 0:00:06]} 34. Rc1 {[%emt 0:20:30]} Rxg3 {[%emt 0:02:19]} 35. Rb1 {[%emt 0:00:09]} Qg8 {[%emt 0:00:07]} 36. Qf2 {[%emt 0:01:28]} Qg4 {[%emt 0:03:19]} 37. a5 {[%emt 0:07:16]} f4 {[%emt 0:00:45]} 0-1

[Event "7th Iberoamerican-ch 2019"]
[Site "Linares"]
[Date "2019.08.18"]
[Round "9.10"]
[White "Damaso, Rui"]
[Black "Fier, Alexandr"]
[Result "0-1"]
[ECO "B04"]
[WhiteElo "2417"]
[BlackElo "2558"]
[Annotator "ChessBase"]
[PlyCount "184"]
[EventDate "2019.08.10"]
[EventType "swiss"]
[EventCountry "ESP"]
[SourceTitle "playchess.com"]
[Source "ChessBase"]
[SourceQuality "1"]
[TimeControl "5400+30"]

1. e4 {[%emt 0:13:51]} Nf6 {[%emt 0:00:00]} 2. e5 {[%emt 0:00:22]} Nd5 {[%emt 0:00:00]} 3. d4 {[%emt 0:00:57]} d6 {[%emt 0:00:00]} 4. Nf3 {[%emt 0:02:37]} g6 {[%emt 0:00:00]} 5. Bc4 {[%emt 0:00:30]} Nb6 {[%emt 0:00:05]} 6. Bb3 {[%emt 0:00:08]} Bg7 {[%emt 0:00:03]} 7. Ng5 {[%emt 0:01:17]} e6 {[%emt 0:00:05]} 8. Qf3 {[%emt 0:00:44]} Qe7 {[%emt 0:00:04]} 9. Ne4 {[%emt 0:05:59]} dxe5 {[%emt 0:00:03]} 10. Bg5 {[%emt 0:00:16]} Qb4+ {[%emt 0:00:04]} 11. Bd2 {[%emt 0:09:37]} Qe7 {[%emt 0:04:17]} 12. Bg5 {[%emt 0:02:59]} Qb4+ {[%emt 0:00:03]} 13. Bd2 {[%emt 0:00:11]} Qxd4 {[%emt 0:04:52]} 14. Nf6+ {[%emt 0:07:07]} Bxf6 {[%emt 0:01:23]} 15. Qxf6 {[%emt 0:00:06]} Rg8 {[%emt 0:00:19]} 16. Nc3 {[%emt 0:04:55]} N6d7 {[%emt 0:05:24]} 17. Qf3 {[%emt 0:07:29]} Nc6 {[%emt 0:06:51]} 18. O-O-O {[%emt 0:01:38]} Qh4 {[%emt 0:00:29]} 19. Nb5 {[%emt 0:08:02]} Qd8 {[%emt 0:05:19]} 20. Qh3 {[%emt 0:04:12]} a6 {[%emt 0:03:59]} 21. Qxh7 {[%emt 0:01:12]} Rf8 {[%emt 0:01:05]} 22. Nc3 {[%emt 0:03:16]} Qf6 {[%emt 0:00:06]} 23. Qh3 {[%emt 0:02:59]} Nc5 {[%emt 0:02:20]} 24. Rhe1 {[%emt 0:06:29]} Bd7 {[%emt 0:00:28]} 25. Qg3 {[%emt 0:01:15]} Qf5 {[%emt 0:03:24]} 26. f3 {[%emt 0:04:55]} O-O-O {[%emt 0:01:07]} 27. Ne4 {[%emt 0:00:57]} Nxe4 {[%emt 0:00:23]} 28. Rxe4 {[%emt 0:00:15]} f6 {[%emt 0:03:36]} 29. c3 Rh8 {[%emt 0:00:25]} 30. Rg4 {[%emt 0:02:08]} Rdg8 {[%emt 0:01:22]} 31. Be3 {[%emt 0:02:28]} Qh5 {[%emt 0:00:21]} 32. Bg1 {[%emt 0:00:36]} g5 {[%emt 0:09:02]} 33. Qf2 {[%emt 0:01:39]} Qe8 {[%emt 0:00:12]} 34. Rc4 {[%emt 0:00:53]} b6 {[%emt 0:02:30]} 35. Bc2 {[%emt 0:02:03]} f5 {[%emt 0:01:04]} 36. b4 {[%emt 0:00:25]} Rh4 {[%emt 0:07:00]} 37. Bd3 {[%emt 0:00:04]} Rxc4 {[%emt 0:00:15]} 38. Bxc4 {[%emt 0:00:02]} Nb8 {[%emt 0:01:04]} 39. Qe3 {[%emt 0:00:45]} Bb5 {[%emt 0:00:45]} 40. Bb3 {[%emt 0:00:09]} Ba4 {[%emt 0:01:24]} 41. Qxe5 {[%emt 0:00:17]} Bxb3 {[%emt 0:00:03]} 42. axb3 {[%emt 0:00:09]} Qc6 {[%emt 0:00:04]} 43. Re1 {[%emt 0:00:45]} Nd7 {[%emt 0:00:17]} 44. Qe3 {[%emt 0:00:13]} g4 {[%emt 0:00:14]} 45. fxg4 {[%emt 0:01:54]} Rxg4 {[%emt 0:00:05]} 46. Qf3 {[%emt 0:00:10]} Qxf3 {[%emt 0:04:05]} 47. gxf3 {[%emt 0:00:04]} Rg6 {[%emt 0:00:03]} 48. Be3 {[%emt 0:00:19]} Ne5 {[%emt 0:00:24]} 49. Rf1 {[%emt 0:00:32]} Rg2 {[%emt 0:00:05]} 50. h4 {[%emt 0:02:05]} Rh2 {[%emt 0:00:01]} 51. Bg5 {[%emt 0:00:15]} c5 {[%emt 0:07:25]} 52. bxc5 {[%emt 0:00:14]} bxc5 {[%emt 0:00:05]} 53. Kb1 {[%emt 0:00:26]} Ng6 {[%emt 0:00:57]} 54. Re1 {[%emt 0:01:28]} Kd7 {[%emt 0:00:04]} 55. Rd1+ {[%emt 0:00:23]} Kc6 {[%emt 0:00:04]} 56. Re1 {[%emt 0:00:57]} e5 {[%emt 0:00:08]} 57. c4 {[%emt 0:00:06]} Rh3 {[%emt 0:00:55]} 58. Ka2 {[%emt 0:01:00]} Kd6 {[%emt 0:00:19]} 59. Bf6 {[%emt 0:01:05]} f4 {[%emt 0:01:14]} 60. Bg7 {[%emt 0:00:59]} Rxh4 {[%emt 0:00:17]} 61. Rg1 {[%emt 0:00:05]} Rh2+ {[%emt 0:01:09]} 62. Ka3 {[%emt 0:00:23]} Nh4 {[%emt 0:00:05]} 63. Bf8+ {[%emt 0:00:13]} Kc6 {[%emt 0:01:00]} 64. Rd1 {[%emt 0:00:37]} Nxf3 {[%emt 0:00:09]} 65. Rd6+ {[%emt 0:00:06]} Kb7 {[%emt 0:00:19]} 66. Re6 {[%emt 0:00:34]} Nd4 {[%emt 0:08:12]} 67. Rxe5 {[%emt 0:01:23]} f3 {[%emt 0:00:03]} 68. Re7+ {[%emt 0:00:09]} Kc6 {[%emt 0:01:48]} 69. Rf7 {[%emt 0:00:07]} Re2 {[%emt 0:00:05]} 70. Rf6+ {[%emt 0:00:52]} Re6 {[%emt 0:00:14]} 71. Rf4 {[%emt 0:00:04]} Nc2+ {[%emt 0:02:40]} 72. Ka4 {[%emt 0:00:28]} Re1 {[%emt 0:00:31]} 73. Bg7 {[%emt 0:00:04]} Re3 {[%emt 0:01:13]} 74. Rf6+ {[%emt 0:00:41]} Kd7 {[%emt 0:00:13]} 75. Rf5 {[%emt 0:00:09]} Ke6 {[%emt 0:01:34]} 76. Rf6+ {[%emt 0:00:20]} Ke7 {[%emt 0:00:40]} 77. Rf4 {[%emt 0:00:16]} Kd7 {[%emt 0:02:13]} 78. Bf8 {[%emt 0:00:59]} Re1 {[%emt 0:01:45]} 79. Ka5 {[%emt 0:00:10]} Nd4 {[%emt 0:00:17]} 80. Kxa6 {[%emt 0:01:56]} Kc6 {[%emt 0:02:25]} 81. Rf6+ {[%emt 0:00:36]} Re6 {[%emt 0:00:32]} 82. Rf7 {[%emt 0:00:26]} Re2 {[%emt 0:00:07]} 83. Ka7 {[%emt 0:00:43]} f2 {[%emt 0:00:21]} 84. Rf6+ {[%emt 0:00:38]} Ne6 {[%emt 0:00:05]} 85. b4 {[%emt 0:00:19]} cxb4 {[%emt 0:00:58]} 86. Bxb4 {[%emt 0:00:05]} Kd7 {[%emt 0:00:13]} 87. Kb6 {[%emt 0:00:26]} Rb2 {[%emt 0:00:17]} 88. Ka5 {[%emt 0:00:23]} Ng5 {[%emt 0:00:30]} 89. Bc5 {[%emt 0:01:53]} Ne4 {[%emt 0:00:04]} 90. Rf7+ {[%emt 0:00:34]} Ke6 {[%emt 0:00:06]} 91. Re7+ {[%emt 0:00:05]} Kf6 {[%emt 0:00:03]} 92. Rxe4 {[%emt 0:00:06]} Ra2+ {[%emt 0:00:02]} 0-1

[Event "7th Iberoamerican-ch 2019"]
[Site "Linares"]
[Date "2019.08.18"]
[Round "9.11"]
[White "Martinez Duany, Lelys Stanley"]
[Black "Fluvia Poyatos, Jordi"]
[Result "1/2-1/2"]
[ECO "B14"]
[WhiteElo "2526"]
[BlackElo "2455"]
[Annotator "ChessBase"]
[PlyCount "66"]
[EventDate "2019.08.10"]
[EventType "swiss"]
[EventCountry "ESP"]
[SourceTitle "playchess.com"]
[Source "ChessBase"]
[SourceQuality "1"]
[TimeControl "5400+30"]

1. e4 {[%emt 0:00:00]} c6 {[%emt 0:00:10]} 2. d4 {[%emt 0:00:00]} d5 {[%emt 0:00:12]} 3. exd5 {[%emt 0:01:49]} cxd5 {[%emt 0:00:11]} 4. c4 {[%emt 0:00:09]} Nf6 {[%emt 0:02:03]} 5. Nc3 {[%emt 0:00:05]} g6 {[%emt 0:01:09]} 6. cxd5 {[%emt 0:00:52]} Bg7 {[%emt 0:01:38]} 7. Bb5+ {[%emt 0:01:38]} Nbd7 {[%emt 0:01:07]} 8. d6 {[%emt 0:00:36]} exd6 {[%emt 0:03:08]} 9. Qe2+ {[%emt 0:00:08]} Qe7 {[%emt 0:02:08]} 10. Bf4 {[%emt 0:00:29]} Qxe2+ {[%emt 0:02:45]} 11. Ngxe2 {[%emt 0:00:07]} d5 {[%emt 0:01:26]} 12. Bd6 {[%emt 0:05:15]} a6 {[%emt 0:07:23]} 13. Bd3 {[%emt 0:01:31]} Nb6 {[%emt 0:10:47]} 14. b3 {[%emt 0:02:34]} Be6 {[%emt 0:01:17]} 15. Rc1 {[%emt 0:00:32]} Rc8 {[%emt 0:07:04]} 16. O-O {[%emt 0:06:00]} Rc6 {[%emt 0:18:11]} 17. Bc5 {[%emt 0:01:16]} Nfd7 {[%emt 0:09:24]} 18. b4 {[%emt 0:04:19]} Nxc5 {[%emt 0:00:17]} 19. bxc5 {[%emt 0:00:33]} Nc8 {[%emt 0:00:14]} 20. Rb1 {[%emt 0:03:32]} Rc7 {[%emt 0:01:03]} 21. Rb4 {[%emt 0:01:45]} Ne7 {[%emt 0:01:48]} 22. Rfb1 {[%emt 0:00:14]} Bc8 {[%emt 0:00:36]} 23. Nf4 {[%emt 0:06:26]} O-O {[%emt 0:07:25]} 24. Ncxd5 {[%emt 0:00:44]} Nxd5 {[%emt 0:00:08]} 25. Nxd5 {[%emt 0:00:09]} Rd7 {[%emt 0:00:07]} 26. Be4 {[%emt 0:12:03]} Rfd8 {[%emt 0:00:26]} 27. Re1 {[%emt 0:06:37]} Kf8 {[%emt 0:00:58]} 28. Nb6 {[%emt 0:00:33]} Rxd4 {[%emt 0:00:11]} 29. Rxd4 {[%emt 0:00:06]} Bxd4 {[%emt 0:00:07]} 30. Nxc8 {[%emt 0:00:14]} Rxc8 {[%emt 0:00:09]} 31. Bxb7 {[%emt 0:00:37]} Rxc5 {[%emt 0:04:57]} 32. Kf1 {[%emt 0:00:26]} Rc2 {[%emt 0:01:01]} 33. Re2 {[%emt 0:00:07]} Rc1+ 1/2-1/2

[Event "7th Iberoamerican-ch 2019"]
[Site "Linares"]
[Date "2019.08.18"]
[Round "9.12"]
[White "Sosa, Tomas"]
[Black "Plazuelo Pascual, Juan"]
[Result "0-1"]
[ECO "C03"]
[WhiteElo "2508"]
[BlackElo "2411"]
[Annotator "ChessBase"]
[PlyCount "76"]
[EventDate "2019.08.10"]
[EventType "swiss"]
[EventCountry "ESP"]
[SourceTitle "playchess.com"]
[Source "ChessBase"]
[SourceQuality "1"]
[TimeControl "5400+30"]

1. e4 e6 {[%emt 0:00:00]} 2. d4 {[%emt 0:00:21]} d5 {[%emt 0:00:00]} 3. Nd2 {[%emt 0:00:05]} Be7 {[%emt 0:00:00]} 4. e5 {[%emt 0:00:27]} c5 {[%emt 0:00:00]} 5. dxc5 {[%emt 0:00:04]} Nd7 {[%emt 0:03:07]} 6. Ngf3 {[%emt 0:00:21]} Qc7 {[%emt 0:09:01]} 7. Bb5 {[%emt 0:00:34]} Bxc5 {[%emt 0:00:24]} 8. Nb3 {[%emt 0:03:23]} Bb6 {[%emt 0:07:15]} 9. O-O {[%emt 0:11:12]} a6 {[%emt 0:03:05]} 10. Bxd7+ {[%emt 0:02:42]} Bxd7 {[%emt 0:00:14]} 11. Re1 {[%emt 0:00:13]} Rc8 {[%emt 0:03:28]} 12. c3 {[%emt 0:01:59]} Ba4 {[%emt 0:03:16]} 13. Be3 {[%emt 0:02:44]} Bxe3 {[%emt 0:03:20]} 14. Rxe3 {[%emt 0:00:09]} Ne7 {[%emt 0:00:30]} 15. Nfd4 {[%emt 0:01:30]} Bxb3 {[%emt 0:00:32]} 16. axb3 {[%emt 0:01:06]} Nc6 {[%emt 0:05:25]} 17. Qg4 {[%emt 0:12:23]} O-O {[%emt 0:01:56]} 18. Nxc6 {[%emt 0:02:23]} bxc6 {[%emt 0:13:23]} 19. Rxa6 {[%emt 0:03:10]} Ra8 {[%emt 0:05:11]} 20. Ra3 {[%emt 0:10:33]} Rfb8 {[%emt 0:04:19]} 21. Qd1 {[%emt 0:11:28]} c5 {[%emt 0:01:52]} 22. Rxa8 {[%emt 0:12:51]} Rxa8 {[%emt 0:00:04]} 23. h4 {[%emt 0:00:08]} Qb8 {[%emt 0:04:45]} 24. h5 {[%emt 0:00:54]} h6 {[%emt 0:00:54]} 25. f4 {[%emt 0:02:22]} Ra2 {[%emt 0:02:23]} 26. Re2 {[%emt 0:14:45]} Qa7 {[%emt 0:02:54]} 27. Kh2 {[%emt 0:00:01]} Ra1 {[%emt 0:02:32]} 28. Qd3 {[%emt 0:00:01]} Rf1 {[%emt 0:01:59]} 29. Kg3 {[%emt 0:00:48]} Rh1 {[%emt 0:02:18]} 30. c4 {[%emt 0:03:59]} Qe7 {[%emt 0:01:20]} 31. Kf3 {[%emt 0:01:58]} Qh4 {[%emt 0:00:02]} 32. Qd2 {[%emt 0:00:53]} Qxh5+ {[%emt 0:03:56]} 33. Ke3 {[%emt 0:00:00]} d4+ {[%emt 0:00:17]} 34. Ke4 {[%emt 0:00:55]} Rf1 {[%emt 0:01:38]} 35. Rf2 {[%emt 0:00:34]} Rd1 {[%emt 0:00:09]} 36. Qc2 {[%emt 0:00:24]} d3 {[%emt 0:01:21]} 37. Qc3 {[%emt 0:00:09]} Qe2+ {[%emt 0:00:13]} 38. Rxe2 {[%emt 0:00:05]} dxe2 {[%emt 0:00:02] Kd4} 0-1